fUSD/lending_fUSD_20250105
["ID","MTS","AMOUNT","RATE_DAILY","PERIOD"]
[347736843,1736087459808,-500.0,9.041e-05,2]
[347736844,1736087459819,-1178.06,9.041e-05,2]
[347736845,1736087459831,-665.54,9.041e-05,2]
[347736846,1736087459842,-841.67,9.041e-05,2]
[347736847,1736087459854,-546.88095057,9.041e-05,2]
[347736848,1736087459865,-567.9,9.041e-05,2]
[347736849,1736087459878,-501.11,9.041e-05,2]
[347736850,1736087459891,-743.28,9.041e-05,2]
[347736851,1736087459903,-629.72,9.041e-05,2]
[347736852,1736087459915,-1735.99,9.041e-05,2]
[347736853,1736087459927,-1632.07,9.041e-05,2]
[347736854,1736087459939,-1243.34,9.041e-05,2]
[347736855,1736087459953,-500.0,9.041e-05,2]
[347736856,1736087459965,-863.18,9.041e-05,2]
[347736857,1736087459976,-740.77,9.041e-05,2]
[347736858,1736087459988,-652.36,9.041e-05,2]
[347736859,1736087459999,-982.16,9.041e-05,2]
[347736860,1736087460010,-500.0,9.041e-05,2]
[347736861,1736087460026,-500.0,9.041e-05,2]
[347736862,1736087460037,-926.05,9.041e-05,2]
[347736863,1736087460050,-1594.81,9.041e-05,2]
[347736864,1736087460062,-676.75,9.041e-05,2]
[347736865,1736087460075,-1315.68,9.041e-05,2]
[347736866,1736087460087,-677.8,9.041e-05,2]
[347736867,1736087460099,-2577.87,9.041e-05,2]
[347736868,1736087460111,-500.0,9.041e-05,2]
[347736869,1736087460122,-1785.83,9.041e-05,2]
[347736870,1736087460135,-749.64,9.041e-05,2]
[347736871,1736087460147,-1591.99,9.041e-05,2]
[347736872,1736087460158,-665.75,9.041e-05,2]
[347736873,1736087460171,-697.79,9.041e-05,2]
[347736874,1736087460182,-500.0,9.041e-05,2]
[347736875,1736087460194,-1315.89,9.041e-05,2]
[347736876,1736087460205,-500.0,9.041e-05,2]
[347736877,1736087460217,-1730.96,9.041e-05,2]
[347736878,1736087460229,-500.0,9.041e-05,2]
[347736879,1736087460241,-1071.44,9.041e-05,2]
[347736880,1736087460253,-500.0,9.041e-05,2]
[347736881,1736087460265,-1369.17,9.041e-05,2]
[347736882,1736087460278,-1027.49,9.041e-05,2]
[347736883,1736087460289,-500.0,9.041e-05,2]
[347736884,1736087460301,-780.04,9.041e-05,2]
[347736885,1736087460313,-500.0,9.041e-05,2]
[347736886,1736087460324,-500.0,9.041e-05,2]
[347736887,1736087460336,-500.0,9.041e-05,2]
[347736888,1736087460347,-714.9,9.041e-05,2]
[347736889,1736087460359,-500.0,9.041e-05,2]
[347736890,1736087460371,-761.44,9.041e-05,2]
[347736891,1736087460382,-654.93,9.041e-05,2]
[347736892,1736087460394,-4721.47,9.041e-05,2]
[347736893,1736087460405,-1241.25,9.041e-05,2]
[347736894,1736087460417,-500.0,9.041e-05,2]
[347736895,1736087460429,-1218.9,9.041e-05,2]
[347736896,1736087460441,-500.0,9.041e-05,2]
[347736897,1736087460452,-500.0,9.041e-05,2]
[347736898,1736087460464,-500.0,9.041e-05,2]
[347736899,1736087460476,-2665.79,9.041e-05,2]
[347736900,1736087460487,-760.67,9.041e-05,2]
[347736901,1736087460500,-500.0,9.041e-05,2]
[347736902,1736087460511,-500.0,9.041e-05,2]
[347736903,1736087460523,-4518.88,9.041e-05,2]
[347736904,1736087460535,-500.0,9.041e-05,2]
[347736905,1736087460548,-971.8,9.041e-05,2]
[347736906,1736087460560,-500.0,9.041e-05,2]
[347736907,1736087460572,-748.36,9.041e-05,2]
[347736908,1736087460584,-1454.08,9.041e-05,2]
[347736909,1736087460596,-632.83,9.041e-05,2]
[347736910,1736087460609,-3596.85,9.041e-05,2]
[347736911,1736087460621,-1144.8,9.041e-05,2]
[347736912,1736087460633,-3009.84,9.041e-05,2]
[347736913,1736087460644,-1306.84,9.041e-05,2]
[347736914,1736087460656,-1172.62,9.041e-05,2]
[347736915,1736087460667,-1053.43,9.041e-05,2]
[347736916,1736087460679,-2149.95,9.041e-05,2]
[347736917,1736087460691,-4867.27,9.041e-05,2]
[347736918,1736087460703,-956.06,9.041e-05,2]
[347736919,1736087460715,-3847.94,9.041e-05,2]
[347736920,1736087460726,-745.14,9.041e-05,2]
[347736921,1736087460738,-928.53,9.041e-05,2]
[347736922,1736087460750,-573.78,9.041e-05,2]
[347736923,1736087460761,-1744.35,9.041e-05,2]
[347736924,1736087460773,-917.07,9.041e-05,2]
[347736925,1736087460784,-3460.52,9.041e-05,2]
[347736926,1736087460796,-12077.17,9.041e-05,2]
[347736927,1736087460808,-500.0,9.041e-05,2]
[347736928,1736087460821,-1712.07,9.041e-05,2]
[347736929,1736087460833,-1317.55,9.041e-05,2]
[347736930,1736087460845,-4603.7,9.041e-05,2]
[347736931,1736087460858,-586.81,9.041e-05,2]
[347736932,1736087460869,-7134.1,9.041e-05,2]
[347736933,1736087460881,-2511.05,9.041e-05,2]
[347736934,1736087460893,-1211.2,9.041e-05,2]
[347736935,1736087460905,-3861.99,9.041e-05,2]
[347736936,1736087460917,-766.97,9.041e-05,2]
[347736937,1736087460929,-500.0,9.041e-05,2]
[347736938,1736087460943,-1929.34,9.041e-05,2]
[347736939,1736087460954,-1125.8,9.041e-05,2]
[347736940,1736087460965,-5390.32,9.041e-05,2]
[347736941,1736087460977,-841.04,9.041e-05,2]
[347736942,1736087460988,-1134.92,9.041e-05,2]
[347736943,1736087461001,-805.42,9.041e-05,2]
[347736944,1736087461013,-569.83,9.041e-05,2]
[347736945,1736087461024,-6872.1,9.041e-05,2]
[347736946,1736087461036,-521.77,9.041e-05,2]
[347736947,1736087461048,-2538.04,9.041e-05,2]
[347736948,1736087461059,-1929.3,9.041e-05,2]
[347736949,1736087461071,-942.19,9.041e-05,2]
[347736950,1736087461083,-2963.68,9.041e-05,2]
[347736951,1736087461095,-500.0,9.041e-05,2]
[347736952,1736087461107,-3891.85,9.041e-05,2]
[347736953,1736087461119,-1395.54,9.041e-05,2]
[347736954,1736087461131,-1405.3,9.041e-05,2]
[347736955,1736087461143,-945.67,9.041e-05,2]
[347736956,1736087461154,-500.0,9.041e-05,2]
[347736957,1736087461166,-1847.98,9.041e-05,2]
[347736958,1736087461177,-500.0,9.041e-05,2]
[347736959,1736087461189,-1808.06,9.041e-05,2]
[347736960,1736087461200,-5368.34,9.041e-05,2]
[347736961,1736087461212,-5006.82,9.041e-05,2]
[347736962,1736087461224,-477.74291355,9.041e-05,2]
[347736963,1736087461235,-650.58,9.041e-05,2]
[347736964,1736087461248,-1773.48,9.041e-05,2]
[347736965,1736087461259,-3111.48,9.041e-05,2]
[347736966,1736087461270,-6404.36,9.041e-05,2]
[347736967,1736087461282,-901.65,9.041e-05,2]
[347736968,1736087461293,-2824.28,9.041e-05,2]
[347736969,1736087461305,-5155.77,9.041e-05,2]
[347736970,1736087461316,-3443.73,9.041e-05,2]
[347736971,1736087461327,-1458.21,9.041e-05,2]
[347736972,1736087461339,-748.88,9.041e-05,2]
[347736973,1736087461351,-1521.28,9.041e-05,2]
[347736974,1736087461364,-2067.6,9.041e-05,2]
[347736975,1736087461377,-5645.3,9.041e-05,2]
[347736976,1736087461389,-1159.91,9.041e-05,2]
[347736977,1736087461401,-555.26,9.041e-05,2]
[347736978,1736087461411,-2759.01,9.041e-05,2]
[347736979,1736087461423,-1115.77,9.041e-05,2]
[347736980,1736087461434,-1223.55,9.041e-05,2]
[347736981,1736087461446,-3061.12,9.041e-05,2]
[347736982,1736087461459,-2364.91,9.041e-05,2]
[347736983,1736087461470,-1106.77,9.041e-05,2]
[347736984,1736087461481,-1536.35,9.041e-05,2]
[347736985,1736087461492,-879.52,9.041e-05,2]
[347736986,1736087461507,-506.04,9.041e-05,2]
[347736987,1736087461520,-699.73,9.041e-05,2]
[347736988,1736087461533,-1123.2,9.041e-05,2]
[347736989,1736087461546,-2186.84,9.041e-05,2]
[347736990,1736087461558,-500.0,9.041e-05,2]
[347736991,1736087461572,-1485.74,9.041e-05,2]
[347736992,1736087461584,-662.65,9.041e-05,2]
[347736993,1736087461597,-2310.84,9.041e-05,2]
[347736994,1736087461614,-732.61,9.041e-05,2]
[347736995,1736087461626,-1449.67,9.041e-05,2]
[347736996,1736087461639,-1510.38,9.041e-05,2]
[347736997,1736087461651,-1624.68,9.041e-05,2]
[347736998,1736087461664,-1317.06,9.041e-05,2]
[347736999,1736087461676,-818.3,9.041e-05,2]
[347737000,1736087461688,-565.58,9.041e-05,2]
[347737001,1736087461701,-500.0,9.041e-05,2]
[347737002,1736087461713,-1328.64,9.041e-05,2]
[347737003,1736087461724,-732.45,9.041e-05,2]
[347737004,1736087461736,-500.0,9.041e-05,2]
[347737005,1736087461748,-882.95,9.041e-05,2]
[347737006,1736087461760,-2550.53,9.041e-05,2]
[347737007,1736087461773,-1751.15,9.041e-05,2]
[347737008,1736087461784,-533.7,9.041e-05,2]
[347737009,1736087461797,-864.64,9.041e-05,2]
[347737010,1736087461809,-1774.07,9.041e-05,2]
[347737011,1736087461821,-2874.65,9.041e-05,2]
[347737012,1736087461834,-800.29,9.041e-05,2]
[347737013,1736087461845,-877.13,9.041e-05,2]
[347737014,1736087461858,-577.28,9.041e-05,2]
[347737015,1736087462291,-1180.17,9.041e-05,2]
[347737016,1736087462319,-500.0,9.041e-05,2]
[347737017,1736087462341,-1073.55,9.041e-05,2]
[347737018,1736087462352,-1014.49,9.041e-05,2]
[347737019,1736087462362,-4347.54,9.041e-05,2]
[347737020,1736087462372,-1330.12,9.041e-05,2]
[347737021,1736087462382,-1436.65,9.041e-05,2]
[347737022,1736087462392,-600.32,9.041e-05,2]
[347737023,1736087462402,-1657.93,9.041e-05,2]
[347737024,1736087462413,-599.67,9.041e-05,2]
[347737025,1736087462423,-1031.98,9.041e-05,2]
[347737026,1736087462433,-686.4,9.041e-05,2]
[347737027,1736087462442,-1746.76,9.041e-05,2]
[347737028,1736087462453,-771.32,9.041e-05,2]
[347737029,1736087462463,-1216.52,9.041e-05,2]
[347737030,1736087462473,-200.0,9.041e-05,2]
[347737031,1736087462484,-150.0,9.056e-05,2]
[347737032,1736087462494,-1700.0,9.072e-05,2]
[347737033,1736087462504,-500.0,9.072e-05,2]
[347737034,1736087462514,-150.0,9.163e-05,2]
[347737035,1736087462524,-1860.0,9.187e-05,2]
[347737036,1736087462533,-819.0,9.187e-05,2]
[347737037,1736087462543,-3775.0,9.187e-05,2]
[347737038,1736087462553,-1257.586,9.187e-05,2]
[347737039,1736087462562,-916.0,9.187e-05,2]
[347737040,1736087462572,-535.0,9.187e-05,2]
[347737041,1736087462581,-3718.0,9.187e-05,2]
[347737042,1736087462591,-456.844,9.187e-05,2]
[347737043,1736087462600,-1267.0,9.187e-05,2]
[347737044,1736087462614,-1125.906,9.187e-05,2]
[347737045,1736087462623,-636.0,9.187e-05,2]
[347737046,1736087462634,-3893.0,9.187e-05,2]
[347737047,1736087462644,-1173.0,9.187e-05,2]
[347737048,1736087462653,-150.0,9.205e-05,2]
[347737049,1736087462662,-150.0,9.205e-05,2]
[347737050,1736087462672,-150.0,9.205e-05,2]
[347737051,1736087462682,-150.0,9.216e-05,2]
[347737052,1736087462692,-1000.0,9.247e-05,2]
[347737053,1736087462702,-150.0,9.269e-05,2]
[347737054,1736087462712,-45000.0,9.31e-05,2]
[347737055,1736087462722,-500.0,9.314e-05,2]
[347737056,1736087462732,-500.0,9.314e-05,2]
[347737057,1736087462741,-539.14,9.314e-05,2]
[347737058,1736087462751,-554.11,9.314e-05,2]
[347737059,1736087462760,-500.0,9.314e-05,2]
[347737060,1736087462770,-633.48,9.314e-05,2]
[347737061,1736087462780,-500.0,9.314e-05,2]
[347737062,1736087462790,-549.43,9.314e-05,2]
[347737063,1736087462799,-500.0,9.314e-05,2]
[347737064,1736087462809,-226.57698901,9.314e-05,2]
[347737065,1736087462818,-656.44,9.314e-05,2]
[347737066,1736087462828,-500.0,9.314e-05,2]
[347737067,1736087462838,-500.0,9.314e-05,2]
[347737068,1736087462847,-500.0,9.314e-05,2]
[347737069,1736087462858,-500.0,9.314e-05,2]
[347737070,1736087462868,-509.84,9.314e-05,2]
[347737071,1736087462882,-500.0,9.314e-05,2]
[347737072,1736087462892,-500.0,9.314e-05,2]
[347737073,1736087462902,-500.0,9.314e-05,2]
[347737074,1736087462912,-500.0,9.314e-05,2]
[347737075,1736087462922,-500.0,9.314e-05,2]
[347737076,1736087462931,-641.45,9.314e-05,2]
[347737077,1736087462943,-207.13539465,9.314e-05,2]
[347737078,1736087462953,-500.0,9.314e-05,2]
[347737079,1736087462963,-500.0,9.314e-05,2]
[347737080,1736087462973,-500.0,9.314e-05,2]
[347737081,1736087462983,-519.93,9.314e-05,2]
[347737082,1736087462993,-500.0,9.314e-05,2]
[347737083,1736087463002,-500.0,9.314e-05,2]
[347737084,1736087463012,-500.0,9.314e-05,2]
[347737085,1736087463022,-500.0,9.314e-05,2]
[347737086,1736087463031,-500.0,9.314e-05,2]
[347737087,1736087463041,-500.0,9.314e-05,2]
[347737088,1736087463051,-947.94,9.314e-05,2]
[347737089,1736087463061,-500.0,9.314e-05,2]
[347737090,1736087463071,-771.06,9.314e-05,2]
[347737091,1736087463082,-500.0,9.314e-05,2]
[347737092,1736087463092,-500.0,9.314e-05,2]
[347737093,1736087463102,-500.0,9.314e-05,2]
[347737094,1736087463114,-500.0,9.314e-05,2]
[347737095,1736087463125,-500.0,9.314e-05,2]
[347737096,1736087463135,-500.0,9.314e-05,2]
[347737097,1736087463146,-758.28,9.314e-05,2]
[347737098,1736087463157,-500.0,9.314e-05,2]
[347737099,1736087463168,-438.69617253,9.314e-05,2]
[347737100,1736087463178,-500.0,9.314e-05,2]
[347737101,1736087463189,-500.0,9.314e-05,2]
[347737102,1736087463199,-522.41,9.314e-05,2]
[347737103,1736087463210,-500.0,9.314e-05,2]
[347737104,1736087463220,-500.0,9.314e-05,2]
[347737105,1736087463230,-695.0,9.314e-05,2]
[347737106,1736087463241,-500.0,9.314e-05,2]
[347737107,1736087463251,-500.0,9.314e-05,2]
[347737108,1736087463261,-500.0,9.314e-05,2]
[347737109,1736087463271,-500.0,9.314e-05,2]
[347737110,1736087463281,-500.0,9.314e-05,2]
[347737111,1736087463291,-500.0,9.314e-05,2]
[347737112,1736087463301,-644.71,9.314e-05,2]
[347737113,1736087463311,-500.0,9.314e-05,2]
[347737114,1736087463321,-500.0,9.314e-05,2]
[347737115,1736087463332,-500.0,9.314e-05,2]
[347737116,1736087463342,-500.0,9.314e-05,2]
[347737117,1736087463352,-500.0,9.314e-05,2]
[347737118,1736087463364,-500.0,9.314e-05,2]
[347737119,1736087463374,-500.0,9.314e-05,2]
[347737120,1736087463384,-635.97,9.314e-05,2]
[347737121,1736087463394,-500.0,9.314e-05,2]
[347737122,1736087463405,-500.0,9.314e-05,2]
[347737123,1736087463415,-500.0,9.314e-05,2]
[347737124,1736087463425,-500.0,9.314e-05,2]
[347737125,1736087463435,-500.0,9.314e-05,2]
[347737126,1736087463445,-779.91,9.314e-05,2]
[347737127,1736087463455,-558.76,9.314e-05,2]
[347737128,1736087463464,-202.58929399,9.314e-05,2]
[347737129,1736087463474,-645.46,9.314e-05,2]
[347737130,1736087463484,-500.0,9.314e-05,2]
[347737131,1736087463493,-857.29,9.314e-05,2]
[347737132,1736087463503,-500.0,9.314e-05,2]
[347737133,1736087463512,-500.0,9.314e-05,2]
[347737134,1736087463522,-500.0,9.314e-05,2]
[347737135,1736087463532,-500.0,9.314e-05,2]
[347737136,1736087463542,-560.06,9.314e-05,2]
[347737137,1736087463551,-500.0,9.314e-05,2]
[347737138,1736087463562,-500.0,9.314e-05,2]
[347737139,1736087463572,-813.35,9.314e-05,2]
[347737140,1736087463583,-500.0,9.314e-05,2]
[347737141,1736087463593,-500.0,9.314e-05,2]
[347737142,1736087463604,-500.0,9.314e-05,2]
[347737143,1736087463615,-500.0,9.314e-05,2]
[347737144,1736087463625,-709.28,9.314e-05,2]
[347737145,1736087463635,-933.58,9.314e-05,2]
[347737146,1736087463645,-500.0,9.314e-05,2]
[347737147,1736087463655,-500.0,9.314e-05,2]
[347737148,1736087463666,-573.08,9.314e-05,2]
[347737149,1736087463676,-910.71,9.314e-05,2]
[347737150,1736087463685,-500.0,9.314e-05,2]
[347737151,1736087463695,-500.0,9.314e-05,2]
[347737152,1736087463706,-500.0,9.314e-05,2]
[347737153,1736087463716,-500.0,9.314e-05,2]
[347737154,1736087463726,-579.63,9.314e-05,2]
[347737155,1736087463736,-500.0,9.314e-05,2]
[347737156,1736087463747,-500.0,9.314e-05,2]
[347737157,1736087463757,-500.0,9.314e-05,2]
[347737158,1736087463767,-500.0,9.314e-05,2]
[347737159,1736087463777,-500.0,9.314e-05,2]
[347737160,1736087463787,-736.49,9.314e-05,2]
[347737161,1736087463797,-500.0,9.314e-05,2]
[347737162,1736087463807,-500.0,9.314e-05,2]
[347737163,1736087463818,-500.0,9.314e-05,2]
[347737164,1736087463827,-500.0,9.314e-05,2]
[347737165,1736087463837,-500.0,9.314e-05,2]
[347737166,1736087463847,-608.15,9.314e-05,2]
[347737167,1736087463859,-500.0,9.314e-05,2]
[347737168,1736087463869,-500.0,9.314e-05,2]
[347737169,1736087463880,-500.0,9.314e-05,2]
[347737170,1736087463890,-500.0,9.314e-05,2]
[347737171,1736087463900,-436.45354897,9.314e-05,2]
[347737172,1736087463910,-658.6,9.314e-05,2]
[347737173,1736087463920,-500.0,9.314e-05,2]
[347737174,1736087463930,-500.0,9.314e-05,2]
[347737175,1736087463940,-500.0,9.314e-05,2]
[347737176,1736087463953,-500.0,9.314e-05,2]
[347737177,1736087463964,-500.0,9.314e-05,2]
[347737178,1736087463974,-500.0,9.314e-05,2]
[347737179,1736087463984,-500.0,9.314e-05,2]
[347737180,1736087463994,-301.89223643,9.314e-05,2]
[347737181,1736087464004,-500.0,9.314e-05,2]
[347737182,1736087464014,-500.0,9.314e-05,2]
[347737183,1736087464024,-500.0,9.314e-05,2]
[347737184,1736087464034,-545.77,9.314e-05,2]
[347737185,1736087464045,-500.0,9.314e-05,2]
[347737186,1736087464056,-545.27,9.314e-05,2]
[347737187,1736087464067,-500.0,9.314e-05,2]
[347737188,1736087464078,-792.12,9.314e-05,2]
[347737189,1736087464089,-3029.06,9.314e-05,2]
[347737190,1736087464099,-844.73,9.314e-05,2]
[347737191,1736087464110,-1554.62,9.314e-05,2]
[347737192,1736087464120,-500.0,9.314e-05,2]
[347737193,1736087464131,-1642.54,9.315e-05,2]
[347737194,1736087464141,-500.0,9.315e-05,2]
[347737195,1736087464151,-3807.68,9.315e-05,2]
[347737196,1736087464161,-508.96,9.315e-05,2]
[347737197,1736087464171,-3354.98,9.315e-05,2]
[347737198,1736087464181,-2557.36,9.315e-05,2]
[347737199,1736087464192,-500.0,9.315e-05,2]
[347737200,1736087464202,-4574.93,9.315e-05,2]
[347737201,1736087464212,-500.0,9.315e-05,2]
[347737202,1736087464222,-692.96,9.315e-05,2]
[347737203,1736087464233,-563.0,9.315e-05,2]
[347737204,1736087464243,-500.0,9.315e-05,2]
[347737205,1736087464254,-4805.9,9.315e-05,2]
[347737206,1736087464265,-500.0,9.315e-05,2]
[347737207,1736087464275,-7875.64,9.315e-05,2]
[347737208,1736087464285,-500.0,9.315e-05,2]
[347737209,1736087464295,-500.0,9.315e-05,2]
[347737210,1736087464305,-500.0,9.315e-05,2]
[347737211,1736087464316,-552.0531883,9.315e-05,2]
[347737212,1736087464325,-500.0,9.315e-05,2]
[347737213,1736087464336,-576.43,9.315e-05,2]
[347737214,1736087464346,-500.0,9.315e-05,2]
[347737215,1736087464357,-500.0,9.315e-05,2]
[347737216,1736087464366,-613.23,9.315e-05,2]
[347737217,1736087464376,-698.39,9.315e-05,2]
[347737218,1736087464386,-1537.2,9.315e-05,2]
[347737219,1736087464397,-500.0,9.315e-05,2]
[347737220,1736087464407,-500.0,9.315e-05,2]
[347737221,1736087464422,-2922.88,9.315e-05,2]
[347737222,1736087464433,-611.39,9.315e-05,2]
[347737223,1736087464443,-500.0,9.315e-05,2]
[347737224,1736087464454,-938.55,9.315e-05,2]
[347737225,1736087464464,-1444.28,9.315e-05,2]
[347737226,1736087464474,-500.0,9.315e-05,2]
[347737227,1736087464485,-996.14,9.315e-05,2]
[347737228,1736087464495,-533.69,9.315e-05,2]
[347737229,1736087464505,-500.0,9.315e-05,2]
[347737230,1736087464515,-602.64,9.315e-05,2]
[347737231,1736087464525,-510.46,9.315e-05,2]
[347737232,1736087464536,-5569.43,9.315e-05,2]
[347737233,1736087464546,-758.58,9.315e-05,2]
[347737234,1736087464557,-500.0,9.315e-05,2]
[347737235,1736087464567,-500.0,9.315e-05,2]
[347737236,1736087464578,-673.22,9.315e-05,2]
[347737237,1736087464588,-500.0,9.315e-05,2]
[347737238,1736087464598,-500.0,9.315e-05,2]
[347737239,1736087464609,-1180.17,9.315e-05,2]
[347737240,1736087464618,-500.0,9.315e-05,2]
[347737241,1736087464628,-1046.53,9.315e-05,2]
[347737242,1736087464639,-608.8,9.315e-05,2]
[347737243,1736087464648,-366.30226183,9.315e-05,2]
[347737244,1736087464658,-614.88,9.315e-05,2]
[347737245,1736087464668,-500.0,9.315e-05,2]
[347737246,1736087464678,-1270.54,9.315e-05,2]
[347737247,1736087464687,-646.03,9.315e-05,2]
[347737248,1736087464697,-500.0,9.315e-05,2]
[347737249,1736087464706,-500.0,9.315e-05,2]
[347737250,1736087464716,-500.0,9.315e-05,2]
[347737251,1736087464727,-500.0,9.315e-05,2]
[347737252,1736087464737,-1746.53,9.315e-05,2]
[347737253,1736087464747,-638.28,9.315e-05,2]
[347737254,1736087464757,-500.0,9.315e-05,2]
[347737255,1736087464766,-500.0,9.315e-05,2]
[347737256,1736087464777,-813.03,9.315e-05,2]
[347737257,1736087464787,-636.41,9.315e-05,2]
[347737258,1736087464797,-861.08,9.315e-05,2]
[347737259,1736087464807,-500.0,9.315e-05,2]
[347737260,1736087464817,-691.19,9.315e-05,2]
[347737261,1736087464827,-569.3,9.315e-05,2]
[347737262,1736087464836,-3515.39,9.315e-05,2]
[347737263,1736087464846,-1185.52,9.315e-05,2]
[347737264,1736087464856,-1147.13,9.315e-05,2]
[347737265,1736087464866,-500.0,9.315e-05,2]
[347737266,1736087464876,-633.59,9.315e-05,2]
[347737267,1736087464885,-879.06,9.315e-05,2]
[347737268,1736087464896,-818.0,9.315e-05,2]
[347737269,1736087464906,-1114.61,9.315e-05,2]
[347737270,1736087464917,-500.0,9.315e-05,2]
[347737271,1736087464927,-1021.84,9.315e-05,2]
[347737272,1736087464938,-500.0,9.315e-05,2]
[347737273,1736087464951,-500.0,9.315e-05,2]
[347737274,1736087464961,-698.7,9.315e-05,2]
[347737275,1736087464971,-624.66,9.315e-05,2]
[347737276,1736087464981,-500.0,9.315e-05,2]
[347737277,1736087464991,-738.42,9.315e-05,2]
[347737278,1736087465001,-500.0,9.315e-05,2]
[347737279,1736087465011,-605.13,9.315e-05,2]
[347737280,1736087465021,-1424.29,9.315e-05,2]
[347737281,1736087465032,-1100.5,9.315e-05,2]
[347737282,1736087465042,-500.0,9.315e-05,2]
[347737283,1736087465053,-645.23,9.315e-05,2]
[347737284,1736087465064,-471.95,9.315e-05,2]
[347737285,1736087465074,-528.75,9.315e-05,2]
[347737286,1736087465083,-906.79,9.315e-05,2]
[347737287,1736087465093,-728.95,9.315e-05,2]
[347737288,1736087465103,-691.64,9.315e-05,2]
[347737289,1736087465114,-589.99,9.315e-05,2]
[347737290,1736087465125,-500.0,9.315e-05,2]
[347737291,1736087465134,-1480.26,9.315e-05,2]
[347737292,1736087465144,-1775.43,9.315e-05,2]
[347737293,1736087465154,-743.22,9.315e-05,2]
[347737294,1736087465164,-781.44,9.315e-05,2]
[347737295,1736087465174,-699.6,9.315e-05,2]
[347737296,1736087465184,-500.0,9.315e-05,2]
[347737297,1736087465194,-968.92,9.315e-05,2]
[347737298,1736087465204,-500.0,9.315e-05,2]
[347737299,1736087465215,-616.91,9.315e-05,2]
[347737300,1736087465225,-1140.5,9.315e-05,2]
[347737301,1736087465234,-514.64,9.315e-05,2]
[347737302,1736087465243,-524.1,9.315e-05,2]
[347737303,1736087465254,-918.55,9.315e-05,2]
[347737304,1736087465264,-702.75,9.315e-05,2]
[347737305,1736087465274,-500.0,9.315e-05,2]
[347737306,1736087465472,-1033.65,9.315e-05,2]
[347737307,1736087465495,-995.5,9.315e-05,2]
[347737308,1736087465504,-1082.324567,9.315e-05,2]
[347737309,1736087465514,-2079.48,9.315e-05,2]
[347737310,1736087465524,-500.0,9.315e-05,2]
[347737311,1736087465534,-500.0,9.315e-05,2]
[347737312,1736087465543,-500.0,9.315e-05,2]
[347737313,1736087465553,-1050.75,9.315e-05,2]
[347737314,1736087465562,-2288.37,9.315e-05,2]
[347737315,1736087465572,-500.0,9.315e-05,2]
[347737316,1736087465581,-731.7,9.315e-05,2]
[347737317,1736087465591,-624.19,9.315e-05,2]
[347737318,1736087465601,-500.0,9.315e-05,2]
[347737319,1736087465612,-1187.11,9.315e-05,2]
[347737320,1736087465621,-757.3,9.315e-05,2]
[347737321,1736087465631,-500.0,9.315e-05,2]
[347737322,1736087465641,-621.88,9.315e-05,2]
[347737323,1736087465650,-1098.17,9.315e-05,2]
[347737324,1736087465659,-726.88,9.315e-05,2]
[347737325,1736087465669,-1226.741349,9.315e-05,2]
[347737326,1736087465679,-1252.46,9.315e-05,2]
[347737327,1736087465688,-500.0,9.315e-05,2]
[347737328,1736087465698,-1865.96,9.315e-05,2]
[347737329,1736087465707,-500.0,9.315e-05,2]
[347737330,1736087465717,-678.98,9.315e-05,2]
[347737331,1736087465726,-613.52778395,9.315e-05,2]
[347737332,1736087465735,-536.82,9.315e-05,2]
[347737333,1736087465745,-547.99,9.315e-05,2]
[347737334,1736087465755,-155.906236,9.315e-05,2]
[347737335,1736087465765,-773.79,9.315e-05,2]
[347737336,1736087465775,-3163.81,9.315e-05,2]
[347737337,1736087465784,-2381.79,9.315e-05,2]
[347737338,1736087465794,-500.0,9.315e-05,2]
[347737339,1736087465804,-640.07,9.315e-05,2]
[347737340,1736087465814,-626.77,9.315e-05,2]
[347737341,1736087465823,-1289.71,9.315e-05,2]
[347737342,1736087465833,-500.0,9.315e-05,2]